bitfinex-derivatives/quotes_SOLF0:USTF0_20251023
["timestamp","ask_amount","ask_price","bid_price","bid_amount"]
[1761212644863,1.61074432,188.2,188.18,2.69]
[1761212645169,1.61074432,188.2,188.19,7.55080134]
[1761212645365,43.96,188.21,188.19,4.86080134]
[1761212645570,43.96,188.21,188.2,7.55080134]
[1761212647360,4.7804,188.25,188.2,7.55080134]
[1761212647667,4.26074432,188.24,188.22,2.69]
[1761212650369,4.26074432,188.24,188.15,1.61074432]
[1761212650370,1.61074432,188.26,188.24,2.69]
[1761212654276,2.65,188.25,188.2,2.69]
[1761212654581,1.61074432,188.22,188.21,4.84846013]
[1761212654876,1.61074432,188.22,188.21,7.53846013]
[1761212656078,4.26074432,188.22,188.18,2.69]
[1761212656274,1.61074432,188.2,188.18,2.69]
[1761212660881,4.26074432,188.2,188.15,2.69]
[1761212661080,1.61074432,188.16,188.1,2.69]
[1761212662985,1.61074432,188.16,188.14,4.783]
[1761212663286,1.61074432,188.16,188.15,2.69]
[1761212664492,1.61074432,188.18,188.17,2.69]
[1761212665394,4.29074432,188.18,188.1,2.77]
[1761212665684,1.61074432,188.15,188.1,2.77]
[1761212666995,1.61074432,188.15,188.13,2.77]
[1761212668888,1.61074432,188.17,188.14,2.85]
[1761212670000,1.61074432,188.17,188.14,4.783]
[1761212670294,1.61074432,188.17,188.15,2.85]
[1761212671195,2.7,188.16,188.07,6.55584098]
[1761212671492,1.61074432,188.12,188.1,2.85]
[1761212671696,1.61074432,188.11,188.1,2.85]
[1761212673096,1.61074432,188.15,188.11,2.85]
[1761212673994,1.61074432,188.15,188.13,2.85]
[1761212675390,1.61074432,188.17,188.13,2.85]
[1761212676893,1.61074432,188.17,188.14,2.85]
[1761212677898,1.61074432,188.17,188.15,2.85]
[1761212678294,1.61074432,188.19,188.15,2.85]
[1761212678991,1.61074432,188.19,188.15,4.7827]
[1761212679199,1.61074432,188.19,188.16,2.85]
[1761212680893,1.61074432,188.2,188.16,7.6325]
[1761212681104,4.7813,188.22,188.17,2.85]
[1761212681105,6.39204432,188.22,188.17,2.85]
[1761212681905,6.39204432,188.22,188.18,2.85]
[1761212682404,9.09204432,188.22,188.18,2.85]
[1761212682795,4.31074432,188.22,188.18,2.85]
[1761212683702,1.61074432,188.22,188.18,2.85]
[1761212686000,1.61074432,188.22,188.19,2.85]
[1761212686212,2.7,188.21,188.19,2.85]
[1761212689114,2.7,188.21,188.2,4.85114965]
[1761212689308,4.31074432,188.22,188.2,4.85114965]
[1761212689604,4.31074432,188.22,188.21,4.85114965]
[1761212690504,1.61074432,188.22,188.21,4.85114965]
[1761212691097,1.61074432,188.22,188.19,2.85]
[1761212691404,1.61074432,188.22,188.2,7.70024833]
[1761212691704,1.61074432,188.22,188.21,4.85024833]
[1761212692306,4.31074432,188.22,188.21,4.85024833]
[1761212698810,5.21637414,188.22,188.21,4.85024833]
[1761212700015,2.7,188.22,188.21,4.85024833]
[1761212700206,7.6205,188.25,188.22,2.74]
[1761212700514,2.84,188.25,188.23,7.59024833]
[1761212700714,2.84,188.25,188.24,4.85024833]
[1761212700910,7.6202,188.26,188.24,4.85024833]
[1761212701111,7.6202,188.26,188.25,4.85024833]
[1761212701518,4.7802,188.26,188.25,4.85024833]
[1761212702813,2.51637414,188.27,188.25,4.85024833]
[1761212703016,5.35637414,188.27,188.26,4.85024833]
[1761212704133,43.94,188.29,188.27,2.74]
[1761212704324,43.94,188.29,188.28,4.85024833]
[1761212706741,7.6192,188.3,188.28,4.85024833]
[1761212706926,5.35637414,188.29,188.27,2.74]
[1761212707123,10.13587414,188.29,188.27,2.74]
[1761212707833,10.13587414,188.29,188.28,4.85083374]
[1761212708229,10.13587414,188.29,188.23,4.7808]
[1761212708436,7.29587414,188.29,188.25,2.74]
[1761212708631,2.84,188.28,188.26,4.85001672]
[1761212708831,2.84,188.28,188.27,4.85001672]
[1761212710329,2.84,188.25,188.19,2.74]
[1761212710531,5.35637414,188.24,188.19,2.74]
[1761212711035,5.35637414,188.24,188.2,2.74]
[1761212712333,2.51637414,188.24,188.2,2.74]
[1761212713738,5.35637414,188.24,188.2,2.74]
[1761212713933,10.13707414,188.24,188.2,2.74]
[1761212716125,7.621,188.23,188.17,7.5223]
[1761212716331,2.84,188.2,188.14,2.74]
[1761212716639,2.51637414,188.17,188.14,2.74]
[1761212717934,2.51637414,188.17,188.14,7.523]
[1761212718137,2.51637414,188.17,188.15,2.74]
[1761212719539,2.51637414,188.2,188.16,2.74]
[1761212719938,2.51637414,188.2,188.17,2.74]
[1761212720839,2.51637414,188.2,188.18,2.74]
[1761212724339,2.51637414,188.22,188.18,2.74]
[1761212724537,5.35637414,188.22,188.18,2.74]
[1761212725447,2.51637414,188.22,188.18,2.74]
[1761212726443,5.35637414,188.22,188.18,2.74]
[1761212727345,2.51637414,188.22,188.18,2.74]
[1761212727643,2.84,188.21,188.18,2.74]
[1761212728140,2.84,188.21,188.15,7.5228]
[1761212728644,2.85,188.2,188.15,7.5228]
[1761212728837,2.85,188.18,188.15,7.5228]
[1761212729240,2.51637414,188.19,188.16,2.83]
[1761212729545,5.36637414,188.19,188.16,2.83]
[1761212729948,2.85,188.23,188.13,9.38584098]
[1761212730147,2.85,188.23,188.15,2.83]
[1761212730946,7.631,188.23,188.17,4.7823]
[1761212731246,7.631,188.23,188.17,7.6123]
[1761212731647,7.6312,188.22,188.18,2.83]
[1761212735145,7.6312,188.22,188.19,4.87352514]
[1761212735344,7.6312,188.22,188.2,4.87352514]
[1761212735642,7.6312,188.22,188.21,4.87352514]
[1761212739949,2.76,188.17,188.12,6.55584098]
[1761212740142,2.76,188.17,188.11,2.86]
[1761212740341,2.76,188.19,188.11,2.86]
[1761212740650,2.76,188.19,188.12,2.86]
[1761212742049,4.7822,188.18,188.12,4.7836]
[1761212742246,7.5422,188.18,188.13,2.86]
[1761212742451,2.76,188.18,188.13,2.86]
[1761212742950,2.76,188.18,188.14,2.86]
[1761212747156,2.76,188.18,188.15,2.86]
[1761212747358,2.76,188.21,188.15,2.86]
[1761212748953,2.51637414,188.23,188.15,2.86]
[1761212748954,4.7817,188.2,188.15,2.86]
[1761212749154,2.76,188.19,188.15,2.86]
[1761212753465,4.7812,188.22,188.13,2.86]
[1761212753654,4.7812,188.22,188.14,2.86]
[1761212754146,4.7812,188.22,188.15,2.86]
[1761212755049,4.7812,188.22,188.16,4.7825]
[1761212755250,4.7812,188.22,188.17,2.86]
[1761212755661,7.5406,188.25,188.16,2.51637414]
[1761212755856,2.76,188.25,188.17,2.86]
[1761212757064,7.5407,188.24,188.2,2.86]
[1761212757561,2.76,188.23,188.2,2.86]
[1761212758156,2.76,188.23,188.17,7.6422]
[1761212758356,2.76,188.22,188.17,7.6422]
[1761212758762,2.76,188.22,188.18,2.71]
[1761212759156,2.85,188.21,188.15,14.04854098]
[1761212759460,2.85,188.21,188.15,7.4927]
[1761212760063,4.7814,188.21,188.15,7.4927]
[1761212760370,2.85,188.2,188.15,7.4927]
[1761212760551,2.85,188.2,188.15,2.71]
[1761212761864,7.632,188.19,188.15,2.71]
[1761212762066,2.85,188.18,188.12,2.71]
[1761212762469,2.85,188.18,188.12,7.4936]
[1761212764064,7.6322,188.18,188.12,7.4936]
[1761212764268,7.6322,188.18,188.13,2.71]
[1761212766068,2.85,188.17,188.13,2.71]
[1761212766468,2.85,188.17,188.14,4.85500211]
[1761212766671,2.85,188.17,188.15,4.85500211]
[1761212766865,2.85,188.17,188.16,4.85500211]
[1761212776366,4.7822,188.18,188.16,4.85500211]
[1761212776564,2.85,188.17,188.13,2.71]
[1761212776760,2.85,188.17,188.15,2.71]
[1761212776965,2.85,188.17,188.16,4.85541304]
[1761212778773,4.7822,188.18,188.16,4.85541304]
[1761212778974,7.6322,188.18,188.17,4.85541304]
[1761212779374,4.7817,188.2,188.18,2.71]
[1761212779575,4.7817,188.2,188.19,4.85541304]
[1761212779961,7.6317,188.2,188.19,4.85541304]
[1761212780163,2.85,188.19,188.09,6.55584098]
[1761212780363,2.85,188.13,188.09,2.71]
[1761212780669,1.61040117,188.12,188.06,2.71]
[1761212781977,4.784,188.11,188.06,7.4951]
[1761212782165,4.784,188.11,188.07,2.71]
[1761212783476,7.634,188.11,188.07,2.71]
[1761212783875,9.24460117,188.1,188.07,2.71]
[1761212787483,1.61040117,188.13,188.07,2.71]
[1761212787973,2.65,188.15,188.08,1.61040117]
[1761212788176,2.65,188.15,188.11,2.75]
[1761212789182,2.65,188.15,188.12,1.61040117]
[1761212789384,2.65,188.15,188.12,4.40040117]
[1761212789882,1.61040117,188.2,188.13,2.79]
[1761212789883,2.78,188.19,188.13,2.79]
[1761212790774,2.78,188.19,188.13,4.40040117]
[1761212790971,4.7825,188.17,188.13,4.40040117]
[1761212791281,7.5625,188.17,188.13,4.40040117]
[1761212791470,7.5619,188.19,188.16,2.79]
[1761212791669,4.7819,188.19,188.16,2.79]
[1761212791873,7.5619,188.19,188.16,2.79]
[1761212792382,7.5622,188.18,188.15,4.40040117]
[1761212793380,7.5622,188.18,188.15,2.79]
[1761212793582,7.5622,188.18,188.15,4.40040117]
[1761212794080,2.78,188.17,188.15,4.40040117]
[1761212794282,4.7822,188.18,188.08,2.79]
[1761212794283,2.78,188.16,188.08,2.79]
[1761212794478,2.78,188.16,188.1,2.79]
[1761212794685,2.78,188.16,188.12,2.79]
[1761212795186,2.78,188.15,188.11,1.61040117]
[1761212795682,2.78,188.15,188.09,9.18470117]
[1761212797284,2.78,188.15,188.11,1.61040117]
[1761212797482,7.5622,188.18,188.14,2.79]
[1761212797784,1.61040117,188.21,188.05,2.79]
[1761212797785,4.39040117,188.15,188.05,2.79]
[1761212797989,1.61040117,188.1,188.05,2.79]
[1761212798292,2.78,188.09,188.05,2.79]
[1761212798586,4.39040117,188.1,188.05,2.79]
[1761212799378,6.39460117,188.1,188.05,2.79]
[1761212799584,2.78,188.09,188.05,2.79]
[1761212801883,1.61040117,188.08,188.05,2.79]
[1761212802282,1.61040117,188.11,188.06,2.79]
[1761212802591,1.61040117,188.13,188.06,2.79]
[1761212803288,4.39040117,188.13,188.06,2.79]
[1761212803990,9.17390117,188.13,188.06,7.575]
[1761212805885,6.39330117,188.15,188.06,2.79]
[1761212806291,9.17330117,188.15,188.06,2.79]
[1761212807090,4.7833,188.14,188.08,7.5745]
[1761212807390,2.78,188.13,188.09,4.40040117]
[1761212809292,2.78,188.13,188.09,2.79]
[1761212810290,1.61040117,188.13,188.06,4.785]
[1761212810489,2.78,188.12,188.06,7.575]
[1761212811895,2.78,188.12,188.07,2.79]
[1761212812091,4.7839,188.12,188.07,2.79]
[1761212812297,2.78,188.11,188.06,4.785]
[1761212812498,2.78,188.11,188.05,1.61040117]
[1761212812699,7.564,188.11,188.05,1.61040117]
[1761212812895,7.564,188.11,188.06,2.79]
[1761212813199,7.564,188.11,188.08,2.79]
[1761212815399,2.78,188.09,188.06,2.79]
[1761212815598,4.7843,188.1,188.06,2.79]
[1761212818494,7.5643,188.1,188.06,2.79]
[1761212818797,2.7,188.09,188.06,2.79]
[1761212819892,7.4845,188.09,188.06,2.79]
[1761212820100,2.7,188.08,188.02,2.63]
[1761212820492,7.485,188.07,188.04,2.63]
[1761212820692,2.7,188.06,188.0,2.63]
[1761212821401,7.4853,188.06,188.01,4.7863]
[1761212821599,7.4853,188.06,188.02,2.63]
[1761212822000,2.7,188.09,188.04,2.63]
[1761212822592,4.7843,188.1,188.04,2.63]
[1761212823602,4.7843,188.1,188.04,7.4156]
[1761212823805,7.4845,188.09,188.05,2.63]
[1761212824704,4.7845,188.09,188.05,2.63]
[1761212826103,2.7,188.12,188.05,2.63]
[1761212826303,2.7,188.12,188.07,2.63]
[1761212826613,2.7,188.12,188.08,4.89619849]
[1761212826804,2.7,188.12,188.09,4.89619849]
[1761212827004,2.7,188.12,188.1,4.89619849]
[1761212827304,2.7,188.16,188.11,7.52619849]
[1761212827506,2.7,188.16,188.12,7.52619849]
[1761212827701,2.7,188.16,188.13,4.89619849]
[1761212827897,2.7,188.16,188.14,4.89619849]
[1761212828116,7.4826,188.16,188.15,4.89619849]
[1761212832111,2.7,188.2,188.15,4.89619849]
[1761212832313,25.5099,188.27,188.17,2.63]
[1761212832314,2.7,188.23,188.17,2.63]
[1761212832510,2.7,188.26,188.19,2.63]
[1761212832710,2.7,188.26,188.21,2.63]
[1761212832915,2.7,188.26,188.22,7.52619849]
[1761212833215,2.7,188.26,188.23,4.89619849]
[1761212833417,2.7,188.26,188.24,4.89619849]
[1761212833616,2.7,188.26,188.25,4.89619849]
[1761212834411,4.78,188.27,188.25,4.89619849]
[1761212834618,7.48,188.27,188.26,4.89619849]
[1761212834918,7.48,188.27,188.26,4.87190525]
[1761212835808,4.7794,188.29,188.26,4.87190525]
[1761212836009,7.4794,188.29,188.27,4.87190525]
[1761212836213,7.4794,188.29,188.22,2.63]
[1761212836414,7.4794,188.29,188.23,7.49472826]
[1761212836622,7.4794,188.29,188.24,4.86472826]
[1761212836822,7.4797,188.28,188.25,4.86472826]
[1761212837118,7.4797,188.28,188.26,4.86472826]
[1761212837319,7.4797,188.28,188.23,2.63]
[1761212837621,7.4797,188.28,188.24,7.49196083]
[1761212837811,7.4797,188.28,188.25,4.86196083]
[1761212838008,7.4797,188.28,188.26,4.86196083]
[1761212838222,7.4797,188.28,188.24,2.63]
[1761212838425,7.4797,188.28,188.25,4.85949681]
[1761212838614,7.4797,188.28,188.26,4.85949681]
[1761212838813,7.4797,188.28,188.24,2.63]
[1761212839025,7.4797,188.28,188.25,4.85949681]
[1761212839318,7.4797,188.28,188.24,2.63]
[1761212839520,7.4797,188.28,188.25,7.48628526]
[1761212839712,7.4797,188.28,188.26,4.85628526]
[1761212839913,7.4797,188.28,188.27,4.85628526]
[1761212840324,7.4797,188.28,188.25,2.63]
[1761212840520,7.4797,188.28,188.26,4.85201312]
[1761212840711,7.4797,188.28,188.25,2.63]
[1761212841026,7.4797,188.28,188.26,4.85217755]
[1761212841325,7.4797,188.28,188.25,2.63]
[1761212841621,7.4797,188.28,188.26,4.8507866]
[1761212841828,7.4797,188.28,188.25,2.63]
[1761212842018,7.4797,188.28,188.26,4.8512319]
[1761212842213,7.4797,188.28,188.25,2.63]
[1761212844820,4.779,188.31,188.26,4.84619646]
[1761212845023,2.7,188.3,188.26,2.63]
[1761212847030,7.4292,188.3,188.26,2.63]
[1761212847229,2.65,188.29,188.26,2.63]
[1761212848130,7.4295,188.29,188.26,2.63]
[1761212854830,2.85,188.28,188.26,2.63]
[1761212855030,2.85,188.27,188.23,2.62]
[1761212855234,2.85,188.27,188.24,7.45717245]
[1761212855535,2.85,188.27,188.25,4.83717245]
[1761212855834,2.85,188.27,188.24,2.62]
[1761212856040,2.85,188.27,188.25,7.45710059]
[1761212856336,2.85,188.27,188.25,2.62]
[1761212856639,2.85,188.27,188.22,2.62]
[1761212856937,2.85,188.27,188.24,2.62]
[1761212857238,2.85,188.27,188.25,4.83754317]
[1761212857428,2.85,188.27,188.24,2.62]
[1761212857731,2.85,188.27,188.25,4.83824185]
[1761212857936,2.85,188.27,188.24,2.62]
[1761212858132,2.85,188.27,188.25,4.83824185]
[1761212858337,2.85,188.29,188.25,2.62]
[1761212859036,2.85,188.29,188.26,4.83800773]
[1761212859233,2.85,188.32,188.25,2.62]
[1761212859438,2.85,188.32,188.27,2.62]
[1761212861138,2.85,188.29,188.24,2.62]
[1761212861335,2.85,188.29,188.25,7.45899427]
[1761212861541,2.85,188.29,188.26,4.83899427]
[1761212861742,2.85,188.29,188.23,4.7807]
[1761212861932,7.6294,188.29,188.24,4.84006635]
[1761212862135,2.85,188.28,188.25,4.84006635]
[1761212862337,2.85,188.28,188.26,4.84006635]
[1761212862640,2.85,188.28,188.24,2.62]
[1761212862941,2.85,188.28,188.25,7.4613262]
[1761212863143,2.85,188.28,188.26,4.8413262]
[1761212863344,2.85,188.28,188.25,2.62]
[1761212863530,2.85,188.28,188.26,7.46259537]
[1761212863730,2.85,188.28,188.26,2.62]
[1761212865142,2.85,188.28,188.27,4.84456025]
[1761212865342,2.85,188.28,188.26,2.62]
[1761212866240,2.85,188.28,188.23,4.7807]
[1761212866436,2.85,188.28,188.24,7.46512133]
[1761212866637,2.85,188.28,188.25,4.84512133]
[1761212866836,2.85,188.28,188.26,4.84512133]
[1761212867034,2.85,188.28,188.27,4.84512133]
[1761212868646,7.6294,188.29,188.27,4.84512133]
[1761212868848,7.6294,188.29,188.28,4.84512133]
[1761212869246,4.7794,188.29,188.28,4.84512133]
[1761212869448,4.7794,188.29,188.28,7.46512133]
[1761212869842,7.6294,188.29,188.28,4.84512133]
[1761212871161,56.03439578,188.37,188.28,4.84512133]
[1761212871162,2.51969578,188.37,188.29,2.62]
[1761212871353,5.36969578,188.37,188.31,2.62]
[1761212871540,2.85,188.36,188.32,7.46512133]
[1761212871744,2.85,188.36,188.33,4.84512133]
[1761212871945,2.85,188.36,188.34,4.86333651]
[1761212872242,2.85,188.36,188.35,4.86240256]
[1761212874650,7.6274,188.37,188.35,4.86240256]
[1761212874849,7.6274,188.37,188.36,4.86240256]
[1761212882764,9.23499503,188.37,188.36,4.86240256]
[1761212884968,6.38499503,188.37,188.36,4.86240256]
[1761212885265,2.79,188.38,188.36,4.86240256]
[1761212885466,4.39759503,188.39,188.37,4.86240256]
[1761212885766,4.39759503,188.39,188.38,4.86240256]
[1761212887164,4.39759503,188.39,188.38,4.88132206]
[1761212889765,4.94361237,188.44,188.38,4.88132206]
[1761212889964,4.39759503,188.4,188.39,4.87604089]
[1761212891569,2.79,188.39,188.35,2.9]
[1761212891870,1.60759503,188.38,188.36,7.77289825]
[1761212892068,1.60759503,188.38,188.37,4.87289825]
[1761212892667,2.79,188.39,188.37,4.87289825]
[1761212892869,2.79,188.39,188.38,4.87289825]
[1761212895167,2.79,188.37,188.33,2.9]
[1761212895377,1.60759503,188.36,188.34,7.76774765]
[1761212895671,1.60759503,188.36,188.35,4.86774765]
[1761212895872,2.79,188.37,188.35,7.76774765]
[1761212896174,2.79,188.37,188.36,4.86774765]
[1761212896368,6.38479503,188.38,188.36,4.86774765]
[1761212896568,6.38479503,188.38,188.37,4.86774765]
[1761212896771,6.38429503,188.4,188.38,2.9]
[1761212897375,9.17429503,188.4,188.39,4.86405067]
[1761212897674,9.17429503,188.4,188.35,2.9]
[1761212897862,9.17429503,188.4,188.36,7.76432688]
[1761212898072,2.79,188.39,188.37,4.86457215]
[1761212898375,2.79,188.39,188.36,2.9]
[1761212898376,2.79,188.39,188.38,4.86457215]
[1761212898872,6.38429503,188.4,188.22,9.5621]
[1761212898873,2.79,188.34,188.3,2.9]
[1761212899069,4.39759503,188.32,188.24,2.9]
[1761212899269,1.60759503,188.28,188.19,8.16343601]
[1761212899468,1.60759503,188.26,188.2,2.9]
[1761212899673,22.53718764,188.38,188.24,2.9]
[1761212899674,1.60759503,188.28,188.24,2.9]
[1761212899973,1.60759503,188.3,188.24,2.9]
[1761212901175,1.60759503,188.3,188.25,2.9]
[1761212901874,1.60759503,188.32,188.26,2.9]
[1761212902967,1.60759503,188.28,188.26,2.9]
[1761212903170,1.60759503,188.28,188.2,2.9]
[1761212904185,1.60759503,188.28,188.25,2.9]
[1761212905679,1.60759503,188.28,188.26,2.76]
[1761212905981,1.60759503,188.3,188.26,2.76]
[1761212906383,2.72,188.29,188.26,2.76]
[1761212906580,2.72,188.29,188.24,4.7805]
[1761212906581,2.72,188.29,188.24,7.5405]
[1761212906775,1.60759503,188.28,188.25,2.76]
[1761212907284,2.72,188.29,188.25,2.76]
[1761212907781,2.72,188.29,188.26,2.76]
[1761212908883,2.72,188.29,188.25,4.7802]
[1761212909284,2.72,188.29,188.25,7.6802]
[1761212909781,2.72,188.29,188.26,2.9]
[1761212910378,1.60759503,188.28,188.23,7.6807]
[1761212910585,1.60759503,188.24,188.19,2.9]
[1761212911676,4.46759503,188.26,188.22,2.9]
[1761212911877,1.60759503,188.26,188.22,2.9]
[1761212913087,1.60759503,188.26,188.23,2.9]
[1761212913584,4.46759503,188.26,188.23,2.9]
[1761212913981,4.46759503,188.26,188.2,4.7815]
[1761212914183,4.46759503,188.22,188.15,2.9]
[1761212914386,4.46759503,188.2,188.15,2.9]
[1761212915980,4.46759503,188.2,188.16,2.9]
[1761212920985,2.86,188.19,188.15,4.7828]
[1761212921194,1.60759503,188.18,188.13,7.6833]
[1761212921390,4.46759503,188.18,188.14,2.9]
[1761212922791,2.86,188.18,188.14,2.9]
[1761212923486,2.86,188.18,188.14,7.683]
[1761212923694,2.86,188.2,188.15,2.9]
[1761212923992,1.60759503,188.22,188.16,4.50759503]
[1761212924491,1.60759503,188.22,188.16,9.29019503]
[1761212924492,6.38879503,188.22,188.16,9.29019503]
[1761212924789,7.6412,188.22,188.17,2.9]
[1761212925495,7.6412,188.22,188.18,2.9]
[1761212925496,2.86,188.22,188.18,2.9]
[1761212925685,1.60759503,188.24,188.18,2.9]
[1761212925988,4.46759503,188.28,188.2,1.60759503]
[1761212926195,2.86,188.27,188.21,2.9]
[1761212927087,2.86,188.25,188.21,2.9]
[1761212927890,4.7802,188.26,188.21,2.9]
[1761212928193,4.7802,188.26,188.23,2.9]
[1761212928595,7.6397,188.28,188.23,2.9]
[1761212928895,2.86,188.31,188.24,4.50759503]
[1761212929695,7.6397,188.28,188.24,4.50759503]
[1761212929989,7.6397,188.28,188.24,1.60759503]
[1761212930197,7.6392,188.3,188.25,2.9]
[1761212930600,2.86,188.29,188.25,2.9]
[1761212931399,1.60759503,188.32,188.25,2.9]
[1761212931697,4.46759503,188.32,188.25,2.9]
[1761212932097,4.7794,188.29,188.25,2.9]
[1761212933700,4.7789,188.31,188.26,1.60759503]
[1761212934001,2.86,188.3,188.26,4.50759503]
[1761212934191,2.86,188.3,188.27,2.9]
[1761212934394,7.6392,188.3,188.27,2.9]
[1761212935593,2.86,188.28,188.25,1.60759503]
[1761212935805,2.86,188.28,188.23,1.60759503]
[1761212935996,2.86,188.28,188.24,2.9]
[1761212936900,4.7795,188.29,188.24,2.9]
[1761212937108,4.7795,188.29,188.25,1.60759503]
[1761212937404,4.7795,188.29,188.26,2.9]
[1761212938805,7.4995,188.29,188.26,2.9]
[1761212939706,7.4989,188.31,188.26,2.9]
[1761212940001,2.72,188.34,188.27,4.28759503]
[1761212940611,2.72,188.34,188.28,2.68]
[1761212941506,4.7782,188.34,188.3,2.68]
[1761212941708,7.4982,188.34,188.3,2.68]
[1761212942806,2.72,188.33,188.27,4.28759503]
[1761212943397,7.4984,188.33,188.27,9.06719503]
[1761212944809,7.4984,188.33,188.27,7.4596]
[1761212945405,4.7784,188.33,188.29,2.68]
[1761212945606,2.72,188.36,188.29,2.68]
[1761212945811,2.72,188.4,188.32,2.68]
[1761212946115,2.72,188.4,188.36,2.68]
[1761212946808,4.7764,188.41,188.36,2.68]
[1761212947007,7.4964,188.41,188.36,2.68]
[1761212947407,4.7764,188.41,188.36,2.68]
[1761212947599,2.72,188.4,188.36,2.68]
[1761212948900,4.7764,188.41,188.36,2.68]
[1761212949216,2.72,188.44,188.36,2.68]
[1761212949405,2.72,188.44,188.35,4.7777]
[1761212950209,2.72,188.44,188.35,7.4577]
[1761212951006,2.72,188.38,188.31,2.68]
[1761212951203,2.72,188.38,188.27,2.51248952]
[1761212951413,2.72,188.38,188.28,2.68]
[1761212951613,2.51248952,188.36,188.28,2.68]
[1761212951917,5.23248952,188.36,188.28,2.68]
[1761212952418,2.72,188.33,188.25,2.68]
[1761212953014,2.72,188.33,188.27,4.7797]
[1761212953518,10.01098952,188.33,188.27,4.7797]
[1761212953711,2.72,188.32,188.25,7.4603]
[1761212955007,4.7789,188.31,188.25,7.4603]
[1761212955207,2.72,188.32,188.25,7.4603]
[1761212956317,7.4986,188.32,188.26,2.68]
[1761212959134,7.4986,188.32,188.27,2.68]
[1761212961129,2.72,188.31,188.27,2.68]
[1761212961332,4.7786,188.32,188.24,7.4605]
[1761212961333,2.72,188.3,188.24,7.4605]
[1761212962935,2.72,188.3,188.24,2.68]
[1761212963231,2.72,188.31,188.22,7.461]
[1761212964136,4.7795,188.29,188.23,2.68]
[1761212964338,2.72,188.31,188.24,2.68]
[1761212964738,4.7793,188.3,188.24,2.68]
[1761212964937,7.4993,188.3,188.24,2.68]
[1761212965337,4.7793,188.3,188.24,2.68]
[1761212965636,2.72,188.29,188.24,2.68]
[1761212965838,2.72,188.28,188.24,7.4605]
[1761212966030,2.72,188.28,188.24,2.68]
[1761212966229,2.72,188.28,188.21,2.68]
[1761212966937,4.78,188.27,188.22,4.781]
[1761212967238,2.83,188.26,188.22,7.441]
[1761212967837,2.83,188.26,188.23,2.66]
[1761212969035,2.83,188.26,188.2,7.5116]
[1761212969242,2.83,188.26,188.17,2.73]
[1761212970343,4.781,188.23,188.17,2.88]
[1761212970642,7.401,188.23,188.17,2.88]
[1761212971944,7.401,188.23,188.17,7.6622]
[1761212972540,2.62,188.26,188.13,6.55584098]
[1761212972742,2.51248952,188.31,188.07,9.5694]
[1761212972743,2.62,188.24,188.14,2.88]
[1761212973543,4.7814,188.21,188.15,2.88]
[1761212975038,4.7814,188.21,188.15,7.6628]
[1761212975840,4.7814,188.21,188.16,2.88]
[1761212976346,7.4014,188.21,188.16,2.88]
[1761212976540,2.62,188.2,188.16,2.88]
[1761212980950,7.4017,188.2,188.13,7.6633]
[1761212981147,7.4017,188.2,188.13,4.7833]
[1761212981448,7.4017,188.2,188.14,2.88]
[1761212982744,2.62,188.16,188.06,6.55584098]